Workbook

Sheet Sheet1
C6: ISO 7637 | D6: U_N | E6: U_A | F6: Us nom | G6: Us min | H6: Us max | I6: Ri nom | J6: Ri min | K6: Ri max | L6: R load | M6: Tr nom | N6: Tr min | O6: Tr max | P6: Td nom | Q6: Td min | R6: Td max | S6: T1 nom | T6: T1 min | U6: T1 max | V6: T2 nom | W6: T3 max | X6: T4 nom | Y6: T5 nom
A8: Pulse 1 | B8: Injection | C8: 5.6.1 | D8: 12 | E8: 12 | G8: -150 | H8: -75 | I8: 10 | M8: 1e-06 | N8: 5e-07 | O8: 1e-06 | P8: 0.002 | T8: 0.5 | V8: 0.2 | W8: 0.0001
D9: 24 | E9: 24 | G9: -600 | H9: -300 | I9: 50 | M9: 3e-06 | N9: 1.5e-06 | O9: 3e-06 | P9: 0.002 | T9: 0.5 | V9: 0.2 | W9: 0.0001
B10: Verification | C10: C.2.1.1 | D10: 12 | E10: 0 | F10: -100 | G10: -90 | H10: -110 | I10: 10 | L10: inf | M10: 1e-06 | N10: 5e-07 | O10: 1e-06 | P10: 0.002 | Q10: 0.0016 | R10: 0.0024
D11: 12 | E11: 0 | F11: -50 | G11: -60 | H11: -40 | I11: 10 | L11: 10 | P11: 0.0015 | Q11: 0.0012 | R11: 0.0018
C12: C.2.1.2 | D12: 24 | E12: 0 | F12: -600 | G12: -660 | H12: -540 | I12: 50 | L12: inf | M12: 3e-06 | N12: 1.5e-06 | O12: 3e-06 | P12: 0.001 | Q12: 0.0008 | R12: 0.0012
D13: 24 | E13: 0 | F13: -300 | G13: -360 | H13: -240 | I13: 50 | L13: 50 | P13: 0.001 | Q13: 0.0008 | R13: 0.0012
A16: Pulse 2a | B16: Injection | C16: 5.6.2 | G16: 37 | H16: 112 | I16: 2 | M16: 1e-06 | N16: 5e-07 | O16: 1e-06 | P16: 5e-05 | T16: 0.2 | U16: 0.5
B17: Verification | C17: C.2.2.1 | E17: 0 | F17: 75 | G17: 67.5 | H17: 82.5 | I17: 2 | L17: inf | M17: 1e-06 | N17: 5e-07 | O17: 1e-06 | P17: 5e-05 | Q17: 4e-05 | R17: 6e-05
E18: 0 | F18: 37.5 | G18: 30 | H18: 45 | I18: 2 | L18: 2 | P18: 1.2e-05 | Q18: 9.6e-06 | R18: 1.44e-05
A20: Pulse 3a | B20: Injection | C20: 5.6.3 | D20: 12 | E20: 12 | G20: -220 | H20: -112 | I20: 50 | M20: 5e-09 | N20: 3.5e-09 | O20: 6.5e-09 | P20: 1.5e-07 | Q20: 1.05e-07 | R20: 1.95e-07 | S20: 0.0001 | X20: 0.01 | Y20: 0.09
D21: 24 | E21: 24 | G21: -300 | H21: -150 | I21: 50 | M21: 5e-09 | N21: 3.5e-09 | O21: 6.5e-09 | P21: 1.5e-07 | Q21: 1.05e-07 | R21: 1.95e-07 | S21: 0.0001 | X21: 0.01 | Y21: 0.09
B22: Verification | C22: C.2.3.1 | F22: -200 | G22: -220 | H22: -180 | I22: 50 | L22: inf | M22: 5e-09 | N22: 3.5e-09 | O22: 6.5e-09 | P22: 1.5e-07 | Q22: 1.05e-07 | R22: 1.95e-07
F23: -100 | G23: -120 | H23: -80 | I23: 50 | L23: 50 | M23: 5e-09 | N23: 3.5e-09 | O23: 6.5e-09 | P23: 1.5e-07 | Q23: 1.05e-07 | R23: 1.95e-07
A26: Pulse 3b | B26: Injection | C26: 5.6.3 | D26: 12 | E26: 12 | G26: 75 | H26: 150 | I26: 50 | M26: 5e-09 | N26: 3.5e-09 | O26: 6.5e-09 | P26: 1.5e-07 | Q26: 1.05e-07 | R26: 1.95e-07 | S26: 0.0001 | X26: 0.01 | Y26: 0.09
D27: 24 | E27: 24 | G27: 150 | H27: 300 | I27: 50 | M27: 5e-09 | N27: 3.5e-09 | O27: 6.5e-09 | P27: 1.5e-07 | Q27: 1.05e-07 | R27: 1.95e-07 | S27: 0.0001 | X27: 0.01 | Y27: 0.09
B28: Verification | C28: C.2.3.2 | F28: 200 | I28: 50 | L28: inf | M28: 5e-09 | N28: 3.5e-09 | O28: 6.5e-09 | P28: 1.5e-07 | Q28: 1.05e-07 | R28: 1.95e-07
F29: 100 | I29: 50 | L29: 50 | M29: 5e-09 | N29: 3.5e-09 | O29: 6.5e-09 | P29: 1.5e-07 | Q29: 1.05e-07 | R29: 1.95e-07
C31: ISO 16750
A32: Pulse 5a | B32: Injection | C32: 4.6.4 | D32: 12 | E32: 12 | G32: 79 | H32: 101 | J32: 0.5 | K32: 4 | M32: 0.01 | N32: 0.005 | O32: 0.01 | Q32: 0.04 | R32: 0.4
D33: 24 | E33: 24 | G33: 151 | H33: 202 | J33: 1 | K33: 8 | M33: 0.01 | N33: 0.005 | O33: 0.01 | Q33: 0.1 | R33: 0.35 | S33: 10
B34: Verification | C34: A.3.1 | D34: 12 | E34: 0 | F34: 100 | G34: 90 | H34: 110 | I34: 2 | L34: inf | M34: 0.01 | N34: 0.005 | O34: 0.01 | P34: 0.4 | Q34: 0.32 | R34: 0.48
D35: 12 | E35: 0 | F35: 50 | G35: 40 | H35: 60 | I35: 2 | L35: 2 | P35: 0.2 | Q35: 0.16 | R35: 0.24
D36: 24 | E36: 0 | F36: 200 | G36: 180 | H36: 220 | I36: 2 | L36: inf | M36: 0.01 | N36: 0.005 | O36: 0.01 | P36: 0.35 | Q36: 0.28 | R36: 0.42
D37: 24 | E37: 0 | F37: 100 | G37: 80 | H37: 120 | I37: 2 | L37: 2 | P37: 0.175 | Q37: 0.14 | R37: 0.21
A39: Peak effekter | F39: Average
A40: =(MAX(MAX(F8:H8),ABS(MIN(F8:H8)))*2/(2+MIN(I8:K8)))^2/2 -> 312.5 | B40: =(MAX(MAX(F8:H8),ABS(MIN(F8:H8)))*10/(10+MIN(I8:K8)))^2/10 -> 562.5 | C40: =(MAX(MAX(F8:H8),ABS(MIN(F8:H8)))*50/(50+MIN(I8:K8)))^2/50 -> 312.5
A41: =(MAX(MAX(F9:H9),ABS(MIN(F9:H9)))*2/(2+MIN(I9:K9)))^2/2 -> 266.2721893 | B41: =(MAX(MAX(F9:H9),ABS(MIN(F9:H9)))*10/(10+MIN(I9:K9)))^2/10 -> 1000 | C41: =(MAX(MAX(F9:H9),ABS(MIN(F9:H9)))*50/(50+MIN(I9:K9)))^2/50 -> 1800
A42: =(MAX(MAX(F10:H10),ABS(MIN(F10:H10)))*2/(2+MIN(I10:K10)))^2/2 -> 168.0555556 | B42: =(MAX(MAX(F10:H10),ABS(MIN(F10:H10)))*10/(10+MIN(I10:K10)))^2/10 -> 302.5 | C42: =(MAX(MAX(F10:H10),ABS(MIN(F10:H10)))*50/(50+MIN(I10:K10)))^2/50 -> 168.0555556
F43: =MAX(H10,-G10)^2*L11/((I10+L11)^2)*R10/(4.6*T9) -> 0.2113043478
A44: =(MAX(MAX(F12:H12),ABS(MIN(F12:H12)))*2/(2+MIN(I12:K12)))^2/2 -> 322.1893491 | B44: =(MAX(MAX(F12:H12),ABS(MIN(F12:H12)))*10/(10+MIN(I12:K12)))^2/10 -> 1210 | C44: =(MAX(MAX(F12:H12),ABS(MIN(F12:H12)))*50/(50+MIN(I12:K12)))^2/50 -> 2178
F45: =MAX(H12,-G12)^2*L13/((I12+L13)^2)*R12/(4.6*T9) -> 1.136347826
A48: =(MAX(MAX(F16:H16),ABS(MIN(F16:H16)))*2/(2+MIN(I16:K16)))^2/2 -> 1568 | B48: =(MAX(MAX(F16:H16),ABS(MIN(F16:H16)))*10/(10+MIN(I16:K16)))^2/10 -> 871.1111111 | C48: =(MAX(MAX(F16:H16),ABS(MIN(F16:H16)))*50/(50+MIN(I16:K16)))^2/50 -> 231.9526627
A49: =(MAX(MAX(F17:H17),ABS(MIN(F17:H17)))*2/(2+MIN(I17:K17)))^2/2 -> 850.78125 | B49: =(MAX(MAX(F17:H17),ABS(MIN(F17:H17)))*10/(10+MIN(I17:K17)))^2/10 -> 472.65625 | C49: =(MAX(MAX(F17:H17),ABS(MIN(F17:H17)))*50/(50+MIN(I17:K17)))^2/50 -> 125.8552145
F50: =MAX(H17,-G17)^2*L18/((I17+L18)^2)*R17/(4.6*T16) -> 0.0554857337
A52: =(MAX(MAX(F20:H20),ABS(MIN(F20:H20)))*2/(2+MIN(I20:K20)))^2/2 -> 35.79881657 | B52: =(MAX(MAX(F20:H20),ABS(MIN(F20:H20)))*10/(10+MIN(I20:K20)))^2/10 -> 134.4444444 | C52: =(MAX(MAX(F20:H20),ABS(MIN(F20:H20)))*50/(50+MIN(I20:K20)))^2/50 -> 242
A53: =(MAX(MAX(F21:H21),ABS(MIN(F21:H21)))*2/(2+MIN(I21:K21)))^2/2 -> 66.56804734 | B53: =(MAX(MAX(F21:H21),ABS(MIN(F21:H21)))*10/(10+MIN(I21:K21)))^2/10 -> 250 | C53: =(MAX(MAX(F21:H21),ABS(MIN(F21:H21)))*50/(50+MIN(I21:K21)))^2/50 -> 450
A54: =(MAX(MAX(F22:H22),ABS(MIN(F22:H22)))*2/(2+MIN(I22:K22)))^2/2 -> 35.79881657 | B54: =(MAX(MAX(F22:H22),ABS(MIN(F22:H22)))*10/(10+MIN(I22:K22)))^2/10 -> 134.4444444 | C54: =(MAX(MAX(F22:H22),ABS(MIN(F22:H22)))*50/(50+MIN(I22:K22)))^2/50 -> 242
F55: =MAX(F22,-F22)^2*L23/((I22+L23)^2)*R22/(4.6*S21) -> 0.0847826087
A58: =(MAX(MAX(F26:H26),ABS(MIN(F26:H26)))*2/(2+MIN(I26:K26)))^2/2 -> 16.64201183 | B58: =(MAX(MAX(F26:H26),ABS(MIN(F26:H26)))*10/(10+MIN(I26:K26)))^2/10 -> 62.5 | C58: =(MAX(MAX(F26:H26),ABS(MIN(F26:H26)))*50/(50+MIN(I26:K26)))^2/50 -> 112.5
A59: =(MAX(MAX(F27:H27),ABS(MIN(F27:H27)))*2/(2+MIN(I27:K27)))^2/2 -> 66.56804734 | B59: =(MAX(MAX(F27:H27),ABS(MIN(F27:H27)))*10/(10+MIN(I27:K27)))^2/10 -> 250 | C59: =(MAX(MAX(F27:H27),ABS(MIN(F27:H27)))*50/(50+MIN(I27:K27)))^2/50 -> 450
A60: =(MAX(MAX(F28:H28),ABS(MIN(F28:H28)))*2/(2+MIN(I28:K28)))^2/2 -> 29.58579882 | B60: =(MAX(MAX(F28:H28),ABS(MIN(F28:H28)))*10/(10+MIN(I28:K28)))^2/10 -> 111.1111111 | C60: =(MAX(MAX(F28:H28),ABS(MIN(F28:H28)))*50/(50+MIN(I28:K28)))^2/50 -> 200
F61: =MAX(F28,-F28)^2*L29/((I28+L29)^2)*R28/(4.6*S27) -> 0.0847826087
A64: =(MAX(MAX(F32:H32),ABS(MIN(F32:H32)))*2/(2+MIN(I32:K32)))^2/2 -> 3264.32 | B64: =(MAX(MAX(F32:H32),ABS(MIN(F32:H32)))*10/(10+MIN(I32:K32)))^2/10 -> 925.260771 | C64: =(MAX(MAX(F32:H32),ABS(MIN(F32:H32)))*50/(50+MIN(I32:K32)))^2/50 -> 200
A65: =(MAX(MAX(F33:H33),ABS(MIN(F33:H33)))*2/(2+MIN(I33:K33)))^2/2 -> 9067.555556 | B65: =(MAX(MAX(F33:H33),ABS(MIN(F33:H33)))*10/(10+MIN(I33:K33)))^2/10 -> 3372.231405 | C65: =(MAX(MAX(F33:H33),ABS(MIN(F33:H33)))*50/(50+MIN(I33:K33)))^2/50 -> 784.390619
A66: =(MAX(MAX(F34:H34),ABS(MIN(F34:H34)))*2/(2+MIN(I34:K34)))^2/2 -> 1512.5 | B66: =(MAX(MAX(F34:H34),ABS(MIN(F34:H34)))*10/(10+MIN(I34:K34)))^2/10 -> 840.2777778 | C66: =(MAX(MAX(F34:H34),ABS(MIN(F34:H34)))*50/(50+MIN(I34:K34)))^2/50 -> 223.7426036
F67: =MAX(H34,-G34)^2*L35/((I34+L35)^2)*R34/(4.6*S33) -> 15.7826087
A68: =(MAX(MAX(F36:H36),ABS(MIN(F36:H36)))*2/(2+MIN(I36:K36)))^2/2 -> 6050 | B68: =(MAX(MAX(F36:H36),ABS(MIN(F36:H36)))*10/(10+MIN(I36:K36)))^2/10 -> 3361.111111 | C68: =(MAX(MAX(F36:H36),ABS(MIN(F36:H36)))*50/(50+MIN(I36:K36)))^2/50 -> 894.9704142
F69: =MAX(H36,-G36)^2*L37/((I36+L37)^2)*R36/(4.6*S33) -> 55.23913043
A70: =MAX(A40:A69) -> 9067.555556 | B70: =MAX(B40:B69) -> 3372.231405 | C70: =MAX(C40:C69) -> 2178 | D70: =MAX(A70:C70) -> 9067.555556
